bitfinex/quotes_ETHUSD_20240902
["timestamp","ask_amount","ask_price","bid_price","bid_amount"]
[1725263337321,3.0,2444.1,2443.8,0.55]
[1725263337922,3.0,2444.1,2443.6,3.4146]
[1725263338124,4.535436,2444.1,2443.6,0.55]
[1725263339055,7.399536,2444.1,2443.6,0.55]
[1725263339225,2.86425,2444.0,2443.6,0.55]
[1725263339562,3.0,2443.9,2443.4,0.55]
[1725263339723,4.0263786,2443.9,2443.4,0.55]
[1725263340159,4.0263786,2443.9,2443.4,3.41482]
[1725263340364,3.0,2443.9,2443.4,0.55]
[1725263340548,3.0,2444.0,2443.5,2.8647]
[1725263340757,5.86416,2444.0,2443.5,2.8647]
[1725263340955,5.86416,2444.0,2443.4,0.55]
[1725263341469,1.0263696,2443.9,2443.4,0.55]
[1725263341846,3.0,2444.0,2443.5,2.86464]
[1725263342045,4.535436,2444.1,2443.6,0.55]
[1725263342264,1.6889836,2444.0,2443.6,0.55]
[1725263342471,4.6889836,2444.0,2443.6,0.55]
[1725263342965,4.5531436,2444.0,2443.6,0.55]
[1725263343166,3.0,2443.9,2443.6,0.55]
[1725263343386,1.6889836,2444.0,2443.6,0.55]
[1725263343577,0.75530936,2443.9,2443.6,0.55]
[1725263343781,3.75530936,2443.9,2443.6,0.55]
[1725263344194,3.75530936,2443.9,2443.4,0.55]
[1725263344494,3.75530936,2443.9,2443.4,3.41485]
[1725263345488,3.0,2443.9,2443.5,2.86472]
[1725263345656,1.6889836,2444.0,2443.6,0.55]
[1725263346056,3.0,2444.1,2443.6,0.63184491]
[1725263346256,3.0,2444.1,2443.7,2.86449]
[1725263346482,3.0,2444.1,2443.8,0.55]
[1725263346656,4.535437,2444.1,2443.5,2.86467]
[1725263346868,4.535437,2444.1,2443.6,0.55]
[1725263347283,3.0,2444.1,2443.8,2.86436]
[1725263347597,3.0,2444.1,2443.5,0.55]
[1725263347598,3.0,2444.1,2443.6,2.86453]
[1725263347757,3.0,2444.1,2443.7,0.55]
[1725263348188,3.0,2444.1,2443.8,2.8643]
[1725263348446,3.0,2444.1,2443.9,0.55]
[1725263348609,3.0,2444.1,2443.5,2.86471]
[1725263348610,5.86408,2444.1,2443.5,2.86471]
[1725263348769,7.685916,2444.1,2443.6,0.55]
[1725263349960,10.550056,2444.1,2443.6,0.55]
[1725263350612,10.550046,2444.1,2443.6,0.55]
[1725263350759,7.685916,2444.1,2443.6,0.55]
[1725263350959,1.7176316,2444.0,2443.6,0.55]
[1725263352078,1.7176316,2444.0,2443.6,3.41462]
[1725263352277,5.86408,2444.1,2443.6,0.55]
[1725263352607,3.0,2444.1,2443.7,2.94624094]
[1725263352812,3.0,2444.1,2443.8,0.55]
[1725263353101,3.0,2444.1,2443.8,3.41437]
[1725263353492,3.0,2444.1,2443.9,2.86424]
[1725263353691,3.0,2444.1,2444.0,0.55]
[1725263353875,3.0,2444.3,2444.0,0.55]
[1725263354074,7.864887,2444.3,2444.0,0.55]
[1725263354275,2.86399,2444.2,2443.6,2.86458]
[1725263354505,3.0,2444.1,2443.7,0.55]
[1725263354725,4.0728877,2444.1,2443.6,0.55]
[1725263355262,6.9369277,2444.1,2443.6,0.55]
[1725263355462,9.3699,2444.0,2443.6,0.55]
[1725263357321,3.0,2444.1,2443.6,4.04823149]
[1725263357479,3.0,2444.1,2443.7,2.86448]
[1725263357683,12.33372,2444.3,2443.7,2.86448]
[1725263357684,3.0,2444.2,2443.8,3.41438]
[1725263358111,9.4699,2444.3,2443.9,2.86426]
[1725263358304,2.8636,2444.5,2444.0,3.41414]
[1725263358305,12.3335,2444.5,2444.0,3.41414]
[1725263358609,3.0,2444.4,2444.0,3.4959677]
[1725263359176,9.4699,2444.5,2444.1,2.86397]
[1725263359482,9.9797,2444.9,2444.4,2.86367]
[1725263359869,9.9797,2444.9,2444.5,0.55]
[1725263360915,3.0,2444.8,2444.5,0.55]
[1725263361472,3.0,2444.8,2444.4,0.55]
[1725263361786,5.86324,2444.8,2444.4,0.55]
[1725263361992,1.870605,2444.7,2444.4,0.55]
[1725263362377,1.870605,2444.7,2444.2,0.55]
[1725263362713,1.870605,2444.7,2444.2,3.4139]
[1725263363678,3.0,2444.8,2444.2,3.4139]
[1725263363876,3.0,2444.8,2444.3,2.86379]
[1725263364074,12.84281,2444.9,2444.3,2.94560094]
[1725263364272,2.86311,2444.9,2444.3,2.94560094]
[1725263364588,2.86311,2444.9,2444.4,0.55]
[1725263364809,4.680834,2444.9,2444.4,0.55]
[1725263365422,15.31413,2445.1,2444.4,0.63181092]
[1725263365620,3.0,2445.0,2444.6,2.86344]
[1725263365817,3.0,2445.0,2444.7,3.41332]
[1725263366132,17.2351,2445.4,2444.7,4.49474466]
[1725263366429,2.86201,2445.9,2445.2,2.86267]
[1725263366748,2.86201,2445.9,2445.3,0.55]
[1725263366749,2.86211,2445.8,2445.3,0.55]
[1725263367027,3.148311,2445.8,2445.2,0.63178409]
[1725263367333,0.286201,2445.8,2445.2,3.49445409]
[1725263367632,3.148281,2445.8,2445.2,3.49445409]
[1725263367783,3.4631891,2445.7,2445.2,0.55]
[1725263367983,3.4631891,2445.7,2445.2,0.63178408]
[1725263368584,3.4631891,2445.7,2445.2,0.55]
[1725263368816,0.6010291,2445.7,2445.3,2.86262]
[1725263368984,0.6010291,2445.7,2445.4,0.55]
[1725263369392,3.0,2445.8,2445.4,0.55]
[1725263370142,9.9151,2446.1,2445.6,2.86225]
[1725263370288,9.9151,2446.1,2445.7,0.55]
[1725263370483,1.71832109,2446.0,2445.7,0.55]
[1725263370688,1.71832109,2446.0,2445.6,0.55]
[1725263371089,4.58020109,2446.0,2445.6,0.55]
[1725263371320,2.02187911,2445.9,2445.4,3.4125]
[1725263371628,3.30253309,2446.0,2445.4,3.4125]
[1725263372500,2.86213,2445.8,2445.4,0.55]
[1725263372833,3.148343,2445.8,2445.4,0.55]
[1725263373035,3.148343,2445.8,2445.3,0.55]
[1725263373628,2.86203,2445.9,2445.3,0.55]
[1725263373797,12.77686,2446.1,2445.4,0.08177935]
[1725263374017,3.0,2446.0,2445.5,0.55]
[1725263374223,3.0,2446.0,2445.6,9.8099]
[1725263374399,3.0,2446.0,2445.7,0.55]
[1725263374737,15.15108,2446.0,2445.7,0.55]
[1725263374891,2.86194,2445.9,2445.5,0.55]
[1725263377795,12.875376,2446.0,2445.5,0.55]
[1725263378027,15.737196,2446.0,2445.5,0.55]
[1725263379232,1.8598956,2445.9,2445.5,0.55]
[1725263379738,2.86211,2445.8,2445.3,0.55]
[1725263380141,5.72425,2445.8,2445.3,0.55]
[1725263380361,7.77020216,2445.8,2445.3,0.55]
[1725263380935,4.90806216,2445.8,2445.3,0.55]
[1725263381148,4.90806216,2445.8,2445.2,7.29]
[1725263381149,12.31215,2445.6,2445.2,7.29]
[1725263381349,12.31215,2445.6,2445.0,12.20349]
[1725263382338,14.62634771,2445.6,2445.0,12.20349]
[1725263382634,17.48870771,2445.6,2445.1,0.55]
[1725263382806,2.86244,2445.5,2445.1,0.55]
[1725263383212,14.62634771,2445.6,2445.1,0.55]
[1725263384246,17.48872771,2445.6,2445.1,0.55]
[1725263384416,14.62634771,2445.6,2445.1,0.55]
[1725263384599,17.48871771,2445.6,2445.1,0.55]
[1725263384935,2.86242,2445.5,2445.1,0.55]
[1725263385145,2.86275,2445.2,2444.8,7.29]
[1725263386805,2.86275,2445.2,2444.9,0.55]
[1725263387317,2.86289,2445.1,2444.9,0.55]
[1725263387514,4.338328,2445.2,2444.5,7.29]
[1725263387723,2.86298,2445.0,2444.5,7.29]
[1725263388206,2.86298,2445.0,2444.5,10.15355]
[1725263388510,2.86298,2445.0,2444.5,12.408406]
[1725263388827,4.338328,2445.2,2444.6,2.86344]
[1725263389028,11.95227489,2445.3,2444.7,12.95414]
[1725263389029,9.0305,2445.3,2444.7,12.95414]
[1725263389235,5.86258,2445.4,2444.8,2.94495683]
[1725263389430,8.72518,2445.4,2444.9,0.55]
[1725263389746,5.86258,2445.4,2444.9,0.55]
[1725263389905,2.8627,2445.3,2444.8,0.55]
[1725263390101,8.00764549,2445.4,2444.8,3.41321]
[1725263390353,3.0,2445.4,2444.9,2.94485473]
[1725263390531,3.0,2445.4,2445.0,0.55]
[1725263390740,2.86242,2445.5,2445.0,0.63179078]
[1725263391048,2.86242,2445.5,2445.0,0.55]
[1725263392030,3.8623,2445.6,2445.0,3.41297]
[1725263392237,3.0,2445.5,2445.0,3.41297]
[1725263392559,3.0,2445.5,2445.0,3.49475989]
[1725263392762,3.0,2445.5,2445.1,2.86284]
[1725263392969,3.0,2445.5,2445.2,0.55]
[1725263393118,5.86241,2445.5,2445.2,0.55]
[1725263393487,5.86241,2445.5,2445.0,0.55]
[1725263394695,3.0,2445.5,2445.0,3.41297]
[1725263395161,3.0,2445.5,2445.1,5.72568]
[1725263395371,4.0,2445.6,2445.2,0.55]
[1725263395671,3.0,2445.5,2445.2,0.55]
[1725263395878,3.8623,2445.6,2445.2,0.55]
[1725263396165,3.0,2445.5,2445.1,0.55]
[1725263396769,3.0,2445.5,2445.1,0.63178703]
[1725263397460,1.0,2445.6,2445.2,2.86274]
[1725263397965,1.0,2445.6,2445.3,0.55]
[1725263398165,1.0,2445.6,2445.3,9.6889]
[1725263398525,1.0,2445.6,2445.3,12.55151]
[1725263398799,1.0,2445.6,2445.3,5.10829597]
[1725263399005,1.0,2445.6,2445.3,3.41261]
[1725263399682,1.0,2445.6,2445.3,0.55]
[1725263399896,1.0,2445.6,2445.2,3.41273]
[1725263400108,1.0,2445.6,2445.2,0.55]
[1725263400473,1.972427,2445.6,2445.2,0.55]
[1725263400721,2.8627,2445.3,2444.9,7.29]
[1725263400920,2.86253,2445.4,2444.9,7.29]
[1725263401813,4.834767,2445.6,2444.9,10.153]
[1725263401976,5.8624,2445.5,2444.9,10.153]
[1725263402173,1.0,2445.6,2445.2,2.86268]
[1725263402403,1.0,2445.6,2445.3,0.08178043]
[1725263402603,1.0,2445.6,2445.3,0.55]
[1725263403600,1.0,2445.6,2445.2,0.55]
[1725263403839,2.86252,2445.4,2445.2,0.55]
[1725263404124,2.86252,2445.4,2445.0,9.7859]
[1725263404125,8.642376,2445.6,2445.1,0.55]
[1725263404294,2.8624,2445.5,2445.1,0.55]
[1725263404494,8.642376,2445.6,2445.1,0.55]
[1725263404690,6.72474,2445.6,2445.1,0.55]
[1725263404896,2.86246,2445.5,2445.1,0.55]
[1725263405182,2.86251,2445.4,2445.1,0.55]
[1725263405385,2.86251,2445.4,2445.0,0.55]
[1725263405703,9.2368,2445.3,2445.0,0.55]
[1725263405909,12.09943,2445.3,2445.0,0.55]
[1725263406110,12.09943,2445.3,2444.7,9.0489]
[1725263406111,2.86284,2445.2,2444.7,9.0489]
[1725263406322,12.09943,2445.3,2444.7,9.0489]
[1725263406639,2.86287,2445.1,2444.7,9.0489]
[1725263407344,2.86308,2445.0,2444.5,9.6163]
[1725263407831,2.86308,2445.0,2444.5,12.47979]
[1725263408042,1.49623,2445.1,2444.5,14.743141]
[1725263408043,2.86287,2445.1,2444.5,14.743141]
[1725263408190,3.0,2445.0,2444.5,14.743141]
[1725263408390,2.86311,2444.9,2444.5,9.6163]
[1725263408614,2.86311,2444.9,2444.4,7.29]
[1725263408835,2.86311,2444.9,2444.6,0.55]
[1725263409037,2.86311,2444.9,2444.5,0.55]
[1725263409488,2.86301,2445.0,2444.5,0.55]
[1725263409690,2.8631,2444.9,2444.5,0.55]
[1725263409928,2.86301,2445.0,2444.5,0.55]
[1725263412172,3.0,2445.2,2444.7,2.86324]
[1725263412443,3.0,2445.4,2444.9,2.86303]
[1725263412608,3.0,2445.4,2445.0,0.55]
[1725263413090,3.0,2445.4,2445.0,0.63179115]
[1725263413499,3.0,2445.4,2445.0,0.55]
[1725263413941,2.86294,2445.1,2444.7,7.29]
[1725263414162,2.86303,2445.0,2444.8,0.55]
[1725263414651,2.86294,2445.1,2444.8,0.55]
[1725263415213,2.86306,2445.0,2444.8,0.55]
[1725263418290,2.86306,2445.0,2444.7,7.29]
[1725263418948,1.67691776,2445.1,2444.8,0.55]
[1725263418949,4.53982776,2445.1,2444.8,0.55]
[1725263419292,3.0,2445.0,2444.8,0.55]
[1725263419435,5.72566,2445.2,2444.7,0.55]
[1725263419436,3.0,2445.1,2444.7,0.55]
[1725263419637,3.0,2445.1,2444.7,3.41333]
[1725263420076,9.3046,2445.4,2444.9,2.86301]
[1725263420388,9.3046,2445.4,2445.0,0.63179065]
[1725263420676,9.3046,2445.4,2445.0,0.55]
[1725263420877,17.07946602,2445.4,2444.9,0.55]
[1725263421090,2.86288,2445.1,2444.9,0.55]
[1725263421289,2.86288,2445.1,2444.7,0.55]
[1725263421991,2.86283,2445.2,2444.7,0.55]
[1725263422281,4.96619419,2445.2,2444.7,0.55]
[1725263422773,2.86294,2445.1,2444.7,0.55]
[1725263423288,2.8633,2444.8,2444.3,16.9481]
[1725263423650,2.8633,2444.8,2444.3,19.81188]
[1725263424189,9.492,2445.0,2444.5,2.86346]
[1725263424575,3.0,2445.1,2444.7,2.8633]
[1725263424737,3.0,2445.2,2444.8,0.34133]
[1725263424937,3.0,2445.2,2444.8,0.55]
[1725263425551,5.86275,2445.2,2444.8,0.55]
[1725263425745,3.0,2445.2,2444.8,0.55]
[1725263428182,3.0,2445.2,2444.8,3.41321]
[1725263428486,13.82842755,2445.4,2444.8,3.41321]
[1725263428487,3.0,2445.3,2444.8,0.55]
[1725263428780,8.03646385,2445.3,2444.8,0.55]
[1725263428967,5.17382385,2445.3,2444.8,0.55]
[1725263430080,3.0,2445.3,2444.9,2.86307]
[1725263430289,5.86264,2445.3,2444.8,0.55]
[1725263430458,7.55488755,2445.3,2445.0,0.55]
[1725263430795,1.68284875,2445.2,2444.8,0.55]
[1725263431154,4.54560875,2445.2,2444.8,0.55]
[1725263431559,1.68284875,2445.2,2444.8,0.55]
[1725263431763,0.08209641,2445.1,2444.8,0.55]
[1725263432203,0.08209641,2445.1,2444.8,3.41321]
[1725263432492,0.08529416,2445.0,2444.8,3.41321]
[1725263432704,1.69224755,2445.5,2444.9,12.48699538]
[1725263433006,1.0,2445.6,2445.1,5.7256]
[1725263433165,1.0,2445.6,2445.2,2.8627]
[1725263433361,1.0,2445.6,2445.3,0.55]
[1725263433599,0.07977615,2445.5,2445.3,3.41263]
[1725263437772,0.07977615,2445.5,2445.3,0.55]
[1725263437969,0.48775376,2445.5,2445.2,0.55]
[1725263438568,0.07977615,2445.5,2445.2,0.55]
[1725263439572,0.07977615,2445.5,2445.4,2.86251]
[1725263440099,0.07977615,2445.5,2445.4,3.41251]
[1725263440407,0.07977615,2445.5,2445.4,6.27502]
[1725263441285,0.07977615,2445.5,2445.4,6.35679375]
[1725263441490,0.07977615,2445.5,2445.4,8.16241038]
[1725263446593,0.07977615,2445.5,2445.4,5.29990038]
[1725263446796,0.07977615,2445.5,2445.1,2.86279]
[1725263447003,0.07977615,2445.5,2445.0,10.15289]
[1725263447289,0.07977615,2445.5,2445.2,2.86267]
[1725263448083,0.07977615,2445.5,2445.3,0.55]
[1725263451143,0.07977615,2445.5,2445.3,3.41262]
[1725263451342,0.07977615,2445.5,2445.4,2.94429162]
[1725263451574,0.07977615,2445.5,2445.4,3.49429162]
[1725263451779,0.07977615,2445.5,2445.4,7.96005278]
[1725263452071,1.0,2445.6,2445.5,5.7248]
[1725263452356,9.0402,2446.2,2445.7,2.86209]
[1725263452563,9.0402,2446.2,2445.8,0.55]
[1725263452716,9.0402,2446.2,2445.8,3.41203]
[1725263452919,9.0402,2446.2,2445.8,0.55]
[1725263453335,3.0,2446.1,2445.8,0.55]
[1725263455268,2.92177489,2445.9,2444.7,10.41383618]
[1725263455420,2.92177489,2445.9,2445.1,2.86286]
[1725263455421,2.86223,2445.7,2445.1,2.86286]
[1725263455625,9.8366,2445.6,2445.1,2.86286]
[1725263456787,9.8366,2445.6,2445.2,0.55]
[1725263457755,12.69891,2445.6,2445.2,0.55]
[1725263457933,2.86263,2445.3,2444.7,2.86325]
[1725263458526,15.41708,2445.5,2444.9,2.86309]
[1725263458770,3.0,2445.4,2444.9,2.86309]
[1725263458982,2.86263,2445.3,2444.7,2.86325]
[1725263459300,9.5297,2445.2,2444.8,2.86321]
[1725263459580,9.5297,2445.2,2444.9,0.55]
[1725263460134,9.5297,2445.2,2444.4,1.981188]
[1725263460135,9.5297,2445.2,2444.6,2.86344]
[1725263460380,2.3411,2444.8,2444.3,2.8637]
[1725263460592,2.3411,2444.8,2444.5,2.86356]
[1725263461440,2.3411,2444.8,2444.5,5.72706]
[1725263461677,2.3411,2444.8,2444.5,3.44438656]
[1725263461853,2.3411,2444.8,2444.6,0.55]
[1725263462052,2.3411,2444.8,2444.7,2.86333]
[1725263462271,2.3411,2444.8,2444.7,3.41333]
[1725263462787,2.3411,2444.8,2444.7,0.55]
[1725263463643,2.42111298,2444.8,2444.7,0.55]
[1725263464086,2.42111298,2444.8,2444.6,0.55]
[1725263465444,2.42111298,2444.8,2444.5,0.55]
[1725263468382,2.42111298,2444.8,2444.4,0.55]
[1725263470804,5.33133,2444.7,2444.4,0.55]
[1725263471010,2.4334,2444.6,2444.2,0.55]
[1725263471193,2.4334,2444.6,2443.7,3.0]
[1725263471194,2.4334,2444.2,2443.7,2.86439]
[1725263471522,2.8638,2444.3,2443.8,0.286439]
[1725263471523,0.07764448,2444.1,2443.8,0.286439]
[1725263471691,2.4974,2444.0,2443.5,2.86464]
[1725263471899,2.4974,2444.0,2443.0,4.19821107]
[1725263471900,2.57491198,2444.0,2443.0,4.19821107]
[1725263472071,2.57491198,2444.0,2443.2,2.86502]
[1725263472072,2.4706,2443.9,2443.2,2.86502]
[1725263472273,0.07738235,2443.8,2443.4,2.86478]
[1725263472512,2.4706,2443.7,2443.4,5.72955]
[1725263472713,2.4706,2443.7,2443.5,0.286478]
[1725263472865,0.07736395,2443.6,2443.5,0.286478]
[1725263473061,0.07736395,2443.6,2443.5,3.23304759]
[1725263473431,0.07736395,2443.6,2443.5,6.09778759]
[1725263473707,2.20037812,2443.7,2443.6,5.72924]
[1725263473862,2.20037812,2443.7,2443.6,6.33901876]
[1725263474061,2.20037812,2443.7,2443.6,6.88901876]
[1725263477223,2.3205,2444.4,2444.1,2.864]
[1725263477372,2.3205,2444.4,2444.2,0.55]
[1725263477711,2.39472459,2444.3,2444.2,0.55]
[1725263478676,2.39472459,2444.3,2444.2,3.75532]
[1725263478898,2.39472459,2444.3,2444.2,0.8914]
[1725263479084,2.39472459,2444.3,2444.2,0.55]
[1725263479974,2.39472459,2444.3,2444.1,3.41403]
[1725263481728,2.39472459,2444.3,2444.1,6.27806]
[1725263481872,2.39472459,2444.3,2444.2,2.86392]
[1725263482070,2.39472459,2444.3,2444.2,4.041715]
[1725263482301,2.39472459,2444.3,2444.2,6.905635]
[1725263482810,2.3205,2444.3,2444.2,6.905635]
[1725263483321,2.06669531,2444.3,2444.2,6.905635]
[1725263485200,2.06669531,2444.3,2444.2,9.769555]
[1725263485403,3.0,2445.2,2444.7,2.8633]
[1725263485597,3.0,2445.2,2444.8,0.55]
[1725263485796,0.07216918,2445.1,2444.8,0.55]
[1725263486289,2.3325,2445.0,2444.8,0.55]
[1725263486490,0.07215079,2444.9,2444.8,0.55]
[1725263486797,2.2749,2444.9,2444.8,0.55]
[1725263487135,2.34712306,2444.9,2444.8,0.55]
[1725263487902,2.34712306,2444.9,2444.8,0.97313192]
[1725263488132,2.34712306,2444.9,2444.8,3.75454]
[1725263488689,2.34712306,2444.9,2444.8,3.41321]
[1725263489191,2.34712306,2444.9,2444.8,0.55]
[1725263489500,2.34712306,2444.9,2444.3,2.86374]
[1725263489501,2.34712306,2444.9,2444.6,0.55]
[1725263489712,2.34712306,2444.9,2444.4,0.55]
[1725263489897,2.3162,2444.7,2444.4,0.55]
[1725263490090,0.07251243,2444.6,2444.4,0.55]
[1725263490292,2.2911,2444.5,2444.4,0.55]
[1725263490528,2.2911,2444.5,2443.9,2.86422]
[1725263490529,2.36359528,2444.5,2443.9,2.86422]
[1725263490932,5.15479,2444.4,2443.9,2.86422]
[1725263491233,2.4082,2444.2,2443.7,2.86444]
[1725263491391,2.4082,2444.2,2443.7,5.72887]
[1725263491592,0.07240014,2444.1,2443.7,5.72887]
[1725263491902,2.86369,2444.4,2443.7,5.72887]
[1725263491903,2.4082,2444.0,2443.7,2.86443]
[1725263492304,2.4082,2444.0,2443.8,0.63183085]
[1725263492305,2.48030036,2444.0,2443.8,0.63183085]
[1725263492517,2.48030036,2444.0,2443.9,5.72854]
[1725263492760,2.48030036,2444.0,2443.9,6.27854]
[1725263493834,2.13150811,2444.0,2443.9,6.27854]
[1725263494132,2.13150811,2444.0,2443.9,10.057094]
[1725263494133,0.07210036,2444.0,2443.9,10.057094]
[1725263494352,0.59590309,2444.9,2444.3,2.86373]
[1725263494554,0.59590309,2444.9,2444.4,0.55]
[1725263494932,6.38077798,2444.9,2444.4,0.55]
[1725263495125,3.0,2444.8,2444.4,0.55]
[1725263495336,5.86324,2444.8,2444.4,0.55]
[1725263495641,5.86324,2444.8,2444.2,3.41391]
[1725263496352,5.86324,2444.8,2444.2,3.41389]
[1725263496666,5.86324,2444.8,2444.3,2.86379]
[1725263496831,5.86324,2444.8,2444.4,0.55]
[1725263497166,2.3554,2444.7,2444.4,0.55]
[1725263498642,2.3554,2444.7,2444.5,2.8635]
[1725263498983,2.3554,2444.7,2444.6,0.55]
[1725263499139,2.3554,2444.7,2444.5,0.55]
[1725263499344,2.3554,2444.7,2444.5,3.41351]
[1725263499545,2.3554,2444.7,2444.5,0.55]
[1725263499978,2.3554,2444.7,2444.6,2.86345]
[1725263500178,2.3554,2444.7,2444.6,3.41345]
[1725263502088,2.3554,2444.7,2444.6,6.2769]
[1725263507468,2.3554,2444.7,2444.6,9.14035]
[1725263508886,2.4089,2445.5,2445.2,2.86269]
[1725263509069,2.4089,2445.5,2445.3,0.55]
[1725263509260,2.47955627,2445.4,2445.3,0.55]
[1725263512889,2.47955627,2445.4,2445.1,0.55]
[1725263513494,2.47955627,2445.4,2445.1,3.41285]
[1725263515604,2.47955627,2445.4,2445.1,0.55]
[1725263517871,2.47955627,2445.4,2445.2,0.08178564]
[1725263518171,2.47955627,2445.4,2445.1,1.906581]
[1725263518172,2.47955627,2445.4,2445.3,9.13789]
[1725263518379,2.4089,2445.4,2445.3,8.58789]
[1725263518582,2.4089,2445.4,2445.3,9.13789]
[1725263518910,2.4089,2445.4,2445.3,10.106679]
[1725263519616,2.4089,2445.4,2445.3,7.244049]
[1725263519917,2.47303367,2445.4,2445.3,7.244049]
[1725263520683,2.47303367,2445.4,2445.3,4.381419]
[1725263521073,2.47303367,2445.4,2445.3,3.41263]
[1725263521309,2.47303367,2445.4,2445.3,0.55]
[1725263521483,2.47303367,2445.4,2445.2,2.86268]
[1725263521897,2.4089,2445.4,2445.2,5.72536]
[1725263522118,2.49183723,2445.3,2445.2,2.86268]
[1725263522321,2.49183723,2445.3,2445.2,0.57256]
[1725263522883,2.49183723,2445.3,2445.2,1.12256]
[1725263523336,2.49183723,2445.3,2445.2,3.98531]
[1725263524149,2.4277,2445.3,2445.2,3.98531]
[1725263524489,2.4277,2445.3,2445.2,6.84806]
[1725263525237,13.10330489,2446.3,2445.8,2.86201]
[1725263525534,0.06222483,2446.2,2445.9,0.55]
[1725263525756,7.32,2446.3,2445.9,0.55]
[1725263525908,0.06221565,2446.1,2445.9,0.55]
[1725263526090,7.32,2446.3,2445.9,0.55]
[1725263526429,0.06222483,2446.2,2445.9,0.55]
[1725263526802,7.32,2446.3,2445.9,0.55]
[1725263527033,0.06221565,2446.1,2445.9,0.55]
[1725263527237,3.0,2446.2,2445.9,0.55]
[1725263527553,0.06220646,2446.0,2445.9,3.84304855]
[1725263527842,2.86089,2446.8,2446.2,2.86156]
[1725263527988,3.58164121,2446.8,2446.3,0.55]
[1725263528187,2.4803,2446.7,2446.3,0.55]
[1725263530140,3.75328812,2446.7,2446.3,0.55]
[1725263530468,2.4272,2446.6,2446.1,0.55]
[1725263531324,5.28833,2446.6,2446.1,0.55]
[1725263531549,2.4509,2446.5,2446.1,0.55]
[1725263532861,2.4985,2446.4,2446.1,0.55]
[1725263533012,2.4985,2446.4,2445.8,2.86202]
[1725263533223,2.86147,2446.3,2445.8,2.86202]
[1725263533429,2.3673,2446.2,2445.8,2.86202]
[1725263534198,2.3673,2446.2,2445.6,2.86225]
[1725263534199,2.3673,2446.2,2445.6,2.8622]
[1725263534325,2.890177,2446.2,2445.6,2.8622]
[1725263534664,2.890177,2446.2,2445.7,0.55]
[1725263534984,2.3673,2446.2,2445.7,3.41212]
[1725263535273,2.3673,2446.2,2446.0,2.8618]
[1725263535756,2.3673,2446.2,2446.1,0.55]
[1725263537838,2.3673,2446.2,2446.1,3.41169]
[1725263538364,2.42736299,2446.2,2446.1,0.55]
[1725263541371,2.42736299,2446.2,2446.0,0.55]
[1725263541531,2.42736299,2446.2,2446.0,3.41178]
[1725263541949,2.42736299,2446.2,2446.0,3.41173]
[1725263543974,2.42736299,2446.2,2445.6,2.8622]
[1725263544962,2.42736299,2446.2,2445.7,2.86209]
[1725263545272,2.42736299,2446.2,2445.8,2.86204]
[1725263545498,2.42736299,2446.2,2445.9,0.55]
[1725263546099,2.42736299,2446.2,2445.9,3.49362579]
[1725263546258,2.42736299,2446.2,2446.1,2.86169]
[1725263546618,2.42736299,2446.2,2446.1,3.41169]
[1725263546958,2.3673,2446.2,2446.1,3.41169]
[1725263548784,2.3673,2446.2,2446.1,0.55]
[1725263548962,2.42753634,2446.2,2446.1,0.55]
[1725263549161,2.42753634,2446.2,2445.9,2.86192]
[1725263549162,2.42753634,2446.2,2446.0,0.55]
[1725263549860,2.42753634,2446.2,2445.7,7.29]
[1725263550105,2.3558,2446.1,2445.7,7.29]
[1725263550461,2.366,2445.8,2445.2,10.15268]
[1725263550716,2.366,2445.8,2445.2,2.86268]
[1725263550857,2.366,2445.6,2445.2,2.86268]
[1725263551522,2.366,2445.6,2444.9,19.69]
[1725263551523,2.389,2445.4,2444.9,19.69]
[1725263551672,2.389,2445.4,2444.9,22.55307]
[1725263552180,0.05977326,2445.3,2444.9,22.55307]
[1725263552391,2.389,2445.2,2444.9,5.404694]
[1725263552563,2.44876407,2445.2,2444.9,2.86307]
[1725263552898,2.44876407,2445.2,2444.6,7.29]
[1725263552899,2.44876407,2445.2,2444.7,2.86333]
[1725263553200,2.44876407,2445.2,2444.7,2.94513107]
[1725263554260,2.44876407,2445.2,2444.8,0.55]
[1725263554617,2.44876407,2445.2,2444.8,3.41312]
[1725263554794,2.44876407,2445.2,2445.0,2.86288]
[1725263556008,2.44876407,2445.2,2445.1,0.55]
[1725263556969,2.44876407,2445.2,2444.9,2.86307]
[1725263557172,2.44876407,2445.2,2445.0,0.55]
[1725263557804,2.44876407,2445.2,2445.0,3.41295]
[1725263560381,2.44876407,2445.2,2445.1,2.86286]
[1725263560584,2.44876407,2445.2,2445.1,3.41286]
[1725263560777,2.44876407,2445.2,2445.1,0.55]
[1725263561183,2.44876407,2445.2,2445.0,0.55]
[1725263562800,2.44876407,2445.2,2445.0,3.8115363]
[1725263563009,2.389,2445.2,2445.0,3.8115363]
[1725263563168,0.05856065,2445.1,2445.0,3.8115363]
[1725263564778,2.389,2445.2,2445.0,3.8115363]
[1725263565006,0.05859256,2445.1,2445.0,3.8115363]
[1725263565609,0.05859256,2445.1,2445.0,6.6745163]
[1725263565913,2.2547,2445.1,2445.0,6.6745163]
[1725263566118,2.2547,2445.1,2445.0,3.8115363]
[1725263566330,2.31336757,2445.1,2445.0,0.55]